[Event "MČR juniorů a juniorek v rapid šachu 2023"]
[Site "Czech Republic"]
[Date "2023.09.23"]
[Round "3.9"]
[White "Pavlis, Matej"]
[Black "Martinkovic, Adam"]
[Result "0-1"]
[TimeControl "20 min + 5 sec per move"]
[WhiteFideId "23735767"]
[BlackFideId "23728019"]
[WhiteElo "1771"]
[BlackElo "1807"]

1. d4 {[%clk 00:20:08]} {[%emt 00:00:02]} c5 {[%clk 00:20:03]} {[%emt
00:00:08]} 2. d5 {[%clk 00:20:07]} {[%emt 00:00:05]} e5 {[%clk 00:19:48]}
{[%emt 00:00:20]} 3. c4 {[%clk 00:20:10]} {[%emt 00:00:03]} d6 {[%clk
00:19:50]} {[%emt 00:00:03]} 4. Nc3 {[%clk 00:20:08]} {[%emt 00:00:06]} f5
{[%clk 00:19:33]} {[%emt 00:00:22]} 5. e4 {[%clk 00:18:06]} {[%emt 00:02:07]}
Nf6 {[%clk 00:19:02]} {[%emt 00:00:36]} 6. Bg5 {[%clk 00:17:44]} {[%emt
00:00:28]} h6 {[%clk 00:18:10]} {[%emt 00:00:57]} 7. Bxf6 {[%clk 00:17:42]}
{[%emt 00:00:07]} Qxf6 {[%clk 00:18:12]} {[%emt 00:00:03]} 8. Be2 {[%clk
00:16:59]} {[%emt 00:00:47]} Be7 {[%clk 00:17:21]} {[%emt 00:00:56]} 9. Nf3
{[%clk 00:16:48]} {[%emt 00:00:16]} O-O {[%clk 00:17:20]} {[%emt 00:00:06]} 10.
Qd3 {[%clk 00:12:16]} {[%emt 00:04:38]} Qg6 {[%clk 00:16:21]} {[%emt 00:01:03]}
11. O-O-O {[%clk 00:09:23]} {[%emt 00:02:59]} fxe4 {[%clk 00:15:52]} {[%emt
00:00:33]} 12. Nxe4 {[%clk 00:09:07]} {[%emt 00:00:21]} Bf5 {[%clk 00:15:47]}
{[%emt 00:00:09]} 13. Nfd2 {[%clk 00:09:07]} {[%emt 00:00:06]} Bg5 {[%clk
00:15:17]} {[%emt 00:00:36]} 14. Bf3 {[%clk 00:08:23]} {[%emt 00:00:49]} Nd7
{[%clk 00:13:59]} {[%emt 00:01:22]} 15. h4 {[%clk 00:07:41]} {[%emt 00:00:47]}
Bxd2+ {[%clk 00:13:49]} {[%emt 00:00:15]} 16. Rxd2 {[%clk 00:07:44]} {[%emt
00:00:02]} Nf6 {[%clk 00:13:00]} {[%emt 00:00:54]} 17. Re1 {[%clk 00:06:30]}
{[%emt 00:01:20]} Rf7 {[%clk 00:10:30]} {[%emt 00:02:35]} 18. Nxf6+ {[%clk
00:06:17]} {[%emt 00:00:18]} Qxf6 {[%clk 00:10:11]} {[%emt 00:00:24]} 19. Be4
{[%clk 00:05:53]} {[%emt 00:00:28]} Raf8 {[%clk 00:08:59]} {[%emt 00:01:17]} 20.
Qg3 {[%clk 00:03:43]} {[%emt 00:02:13]} Bxe4 {[%clk 00:08:03]} {[%emt
00:01:03]} 21. Rxe4 {[%clk 00:03:48]} {[%emt 00:00:01]} Qf5 {[%clk 00:08:04]}
{[%emt 00:00:04]} 22. f3 {[%clk 00:03:41]} {[%emt 00:00:09]} a6 {[%clk
00:07:26]} {[%emt 00:00:45]} 23. Qe1 {[%clk 00:02:26]} {[%emt 00:01:18]} b5
{[%clk 00:07:10]} {[%emt 00:00:24]} 24. Qe2 {[%clk 00:01:50]} {[%emt 00:00:41]}
Rb8 {[%clk 00:06:00]} {[%emt 00:01:14]} 25. Rd3 {[%clk 00:01:02]} {[%emt
00:00:54]} bxc4 {[%clk 00:05:48]} {[%emt 00:00:17]} 26. Rxc4 {[%clk 00:01:05]}
{[%emt 00:00:02]} Rfb7 {[%clk 00:05:51]} {[%emt 00:00:01]} 27. b3 {[%clk
00:01:05]} {[%emt 00:00:06]} Rb4 {[%clk 00:05:24]} {[%emt 00:00:31]} 28. Rdc3
{[%clk 00:00:34]} {[%emt 00:00:35]} a5 {[%clk 00:04:38]} {[%emt 00:00:53]} 29.
g4 {[%clk 00:00:34]} {[%emt 00:00:04]} Qf6 {[%clk 00:04:11]} {[%emt 00:00:32]}
30. h5 {[%clk 00:00:10]} {[%emt 00:00:29]} Qg5+ {[%clk 00:03:47]} {[%emt
00:00:29]} 31. Kc2 {[%clk 00:00:00]} {[%emt 00:00:11]} 0-1

[Event "MČR juniorů a juniorek v rapid šachu 2023"]
[Site "Czech Republic"]
[Date "2023.09.23"]
[Round "3.10"]
[White "Stejskal, Michal"]
[Black "Nagyova, Daniela"]
[Result "1/2-1/2"]
[TimeControl "20 min + 5 sec per move"]
[WhiteFideId "398195"]
[BlackFideId "390070"]
[WhiteElo "1959"]
[BlackElo "1762"]

1. e4 {[%clk 00:20:07]} {[%emt 00:00:02]} e5 {[%clk 00:20:09]} {[%emt
00:00:02]} 2. Nf3 {[%clk 00:20:09]} {[%emt 00:00:02]} Nc6 {[%clk 00:20:12]}
{[%emt 00:00:03]} 3. c3 {[%clk 00:20:13]} Nf6 {[%clk 00:19:37]} {[%emt
00:00:39]} 4. d4 {[%clk 00:20:16]} {[%emt 00:00:02]} exd4 {[%clk 00:19:05]}
{[%emt 00:00:38]} 5. e5 {[%clk 00:20:20]} {[%emt 00:00:02]} Qe7 {[%clk
00:17:55]} {[%emt 00:01:15]} 6. cxd4 {[%clk 00:20:13]} {[%emt 00:00:12]} Ne4
{[%clk 00:17:01]} {[%emt 00:00:58]} 7. Nc3 {[%clk 00:19:01]} {[%emt 00:01:17]}
Nxc3 {[%clk 00:16:39]} {[%emt 00:00:27]} 8. bxc3 {[%clk 00:19:05]} {[%emt
00:00:02]} d6 {[%clk 00:16:09]} {[%emt 00:00:35]} 9. Bb5 {[%clk 00:18:33]}
{[%emt 00:00:37]} Bd7 {[%clk 00:15:31]} {[%emt 00:00:43]} 10. Bxc6 {[%clk
00:17:46]} {[%emt 00:00:51]} Bxc6 {[%clk 00:14:36]} {[%emt 00:01:00]} 11. O-O
{[%clk 00:17:48]} {[%emt 00:00:03]} O-O-O {[%clk 00:13:54]} {[%emt 00:00:47]}
12. Bf4 {[%clk 00:17:14]} {[%emt 00:00:39]} Qd7 {[%clk 00:12:45]} {[%emt
00:01:15]} 13. Bg3 {[%clk 00:14:57]} {[%emt 00:02:21]} Be7 {[%clk 00:11:08]}
{[%emt 00:01:43]} 14. a4 {[%clk 00:14:03]} {[%emt 00:00:59]} Bd5 {[%clk
00:09:11]} {[%emt 00:02:01]} 15. Re1 {[%clk 00:12:44]} {[%emt 00:01:24]} g5
{[%clk 00:06:54]} {[%emt 00:02:22]} 16. a5 {[%clk 00:11:11]} {[%emt 00:01:39]}
h5 {[%clk 00:05:18]} {[%emt 00:01:41]} 17. exd6 {[%clk 00:10:46]} {[%emt
00:00:30]} cxd6 {[%clk 00:04:42]} {[%emt 00:00:41]} 18. c4 {[%clk 00:08:13]}
{[%emt 00:02:37]} Bxf3 {[%clk 00:03:11]} {[%emt 00:01:37]} 19. Qxf3 {[%clk
00:08:12]} {[%emt 00:00:02]} h4 {[%clk 00:02:50]} {[%emt 00:00:29]} 20. a6
{[%clk 00:08:16]} {[%emt 00:00:01]} hxg3 {[%clk 00:00:44]} {[%emt 00:02:12]} 21.
Qxb7+ {[%clk 00:08:19]} {[%emt 00:00:02]} Qxb7 {[%clk 00:00:41]} {[%emt
00:00:08]} 22. axb7+ {[%clk 00:08:23]} Kd7 {[%clk 00:00:38]} {[%emt 00:00:09]}
23. b8=Q {[%clk 00:08:12]} {[%emt 00:00:15]} Rxb8 {[%clk 00:00:42]} 24. Rxa7+
{[%clk 00:08:15]} {[%emt 00:00:02]} Kd8 {[%clk 00:00:16]} {[%emt 00:00:31]} 25.
Raxe7 {[%clk 00:08:15]} {[%emt 00:00:05]} gxf2+ {[%clk 00:00:08]} {[%emt
00:00:13]} 26. Kxf2 {[%clk 00:08:18]} {[%emt 00:00:02]} Rb2+ {[%clk 00:00:09]}
{[%emt 00:00:04]} 27. Kg1 {[%clk 00:08:06]} {[%emt 00:00:16]} Rh4 {[%clk
00:00:11]} {[%emt 00:00:03]} 28. Rxf7 {[%clk 00:07:52]} {[%emt 00:00:19]} Rg4
{[%clk 00:00:08]} {[%emt 00:00:09]} 29. Rf2 {[%clk 00:07:50]} {[%emt 00:00:07]}
Rxf2 {[%clk 00:00:07]} {[%emt 00:00:06]} 30. Kxf2 {[%clk 00:07:54]} Rxd4 {[%clk
00:00:11]} {[%emt 00:00:01]} 31. Rc1 {[%clk 00:07:53]} {[%emt 00:00:05]} Ke7
{[%clk 00:00:15]} 32. c5 {[%clk 00:07:47]} {[%emt 00:00:13]} dxc5 {[%clk
00:00:19]} {[%emt 00:00:02]} 33. Rxc5 {[%clk 00:07:49]} {[%emt 00:00:02]} Kf6
{[%clk 00:00:22]} {[%emt 00:00:01]} 34. h3 {[%clk 00:07:49]} {[%emt 00:00:05]}
Rd3 {[%clk 00:00:24]} {[%emt 00:00:04]} 35. Ra5 {[%clk 00:07:48]} {[%emt
00:00:06]} Rb3 {[%clk 00:00:24]} {[%emt 00:00:05]} 36. Ra8 {[%clk 00:07:33]}
{[%emt 00:00:19]} Kf5 {[%clk 00:00:17]} {[%emt 00:00:12]} 37. Rf8+ {[%clk
00:07:32]} {[%emt 00:00:06]} Kg6 {[%clk 00:00:10]} {[%emt 00:00:13]} 38. Rf3
{[%clk 00:07:31]} {[%emt 00:00:06]} Rb4 {[%clk 00:00:11]} {[%emt 00:00:04]} 39.
Kg3 {[%clk 00:07:35]} {[%emt 00:00:02]} Kh5 {[%clk 00:00:13]} {[%emt 00:00:03]}
40. Rc3 {[%clk 00:07:38]} {[%emt 00:00:02]} Kg6 {[%clk 00:00:09]} {[%emt
00:00:09]} 41. Rc6+ {[%clk 00:07:41]} {[%emt 00:00:01]} Kf5 {[%clk 00:00:13]}
{[%emt 00:00:02]} 42. Rc5+ {[%clk 00:07:45]} Kf6 {[%clk 00:00:17]} 43. Kf3
{[%clk 00:07:43]} {[%emt 00:00:07]} Kg6 {[%clk 00:00:18]} {[%emt 00:00:04]} 44.
Kg3 {[%clk 00:07:17]} {[%emt 00:00:30]} Kf6 {[%clk 00:00:22]} 45. Rc6+ {[%clk
00:07:14]} {[%emt 00:00:08]} Kf5 {[%clk 00:00:26]} {[%emt 00:00:02]} 46. Ra6
{[%clk 00:07:13]} {[%emt 00:00:06]} Rb3+ {[%clk 00:00:22]} {[%emt 00:00:09]} 47.
Kh2 {[%clk 00:07:16]} {[%emt 00:00:01]} Rc3 {[%clk 00:00:18]} {[%emt 00:00:10]}
48. Ra5+ {[%clk 00:07:20]} {[%emt 00:00:01]} Kf6 {[%clk 00:00:21]} {[%emt
00:00:02]} 49. h4 {[%clk 00:07:15]} {[%emt 00:00:09]} gxh4 {[%clk 00:00:19]}
{[%emt 00:00:07]} 50. Rh5 {[%clk 00:07:16]} {[%emt 00:00:05]} Kg6 {[%clk
00:00:12]} {[%emt 00:00:12]} 51. Rxh4 {[%clk 00:07:19]} {[%emt 00:00:02]} Kg5
{[%clk 00:00:15]} 52. Ra4 {[%clk 00:07:23]} {[%emt 00:00:01]} Rb3 {[%clk
00:00:18]} {[%emt 00:00:02]} 53. g3 {[%clk 00:07:24]} {[%emt 00:00:05]} Kf5
{[%clk 00:00:21]} {[%emt 00:00:03]} 54. Kh3 {[%clk 00:07:27]} Kg5 {[%clk
00:00:21]} {[%emt 00:00:04]} 55. Ra5+ {[%clk 00:07:31]} {[%emt 00:00:02]} Kg6
{[%clk 00:00:24]} {[%emt 00:00:02]} 56. Kh4 {[%clk 00:07:34]} {[%emt 00:00:02]}
Kg7 {[%clk 00:00:21]} {[%emt 00:00:07]} 57. Ra6 {[%clk 00:07:33]} {[%emt
00:00:07]} Rb5 {[%clk 00:00:22]} {[%emt 00:00:04]} 58. g4 {[%clk 00:07:35]}
{[%emt 00:00:02]} Kg8 {[%clk 00:00:22]} {[%emt 00:00:05]} 59. Ra7 {[%clk
00:07:38]} {[%emt 00:00:03]} Rc5 {[%clk 00:00:22]} {[%emt 00:00:05]} 60. g5
{[%clk 00:07:38]} {[%emt 00:00:04]} Rc6 {[%clk 00:00:17]} {[%emt 00:00:10]} 61.
Kh5 {[%clk 00:07:42]} {[%emt 00:00:02]} Rb6 {[%clk 00:00:21]} {[%emt 00:00:02]}
62. Ra4 {[%clk 00:06:17]} {[%emt 00:01:29]} Kg7 {[%clk 00:00:22]} {[%emt
00:00:05]} 63. Rf4 {[%clk 00:06:20]} {[%emt 00:00:02]} Ra6 {[%clk 00:00:19]}
{[%emt 00:00:08]} 64. Rb4 {[%clk 00:06:23]} {[%emt 00:00:02]} Rc6 {[%clk
00:00:17]} {[%emt 00:00:06]} 65. Rb7+ {[%clk 00:06:27]} {[%emt 00:00:02]} Kg8
{[%clk 00:00:21]} {[%emt 00:00:01]} 66. g6 {[%clk 00:06:12]} {[%emt 00:00:20]}
Rc1 {[%clk 00:00:24]} {[%emt 00:00:02]} 67. Rb5 {[%clk 00:06:14]} {[%emt
00:00:03]} Rh1+ {[%clk 00:00:24]} {[%emt 00:00:05]} 68. Kg5 {[%clk 00:06:17]}
Rg1+ {[%clk 00:00:23]} {[%emt 00:00:06]} 69. Kh5 {[%clk 00:05:56]} {[%emt
00:00:27]} Rh1+ {[%clk 00:00:23]} {[%emt 00:00:05]} 70. Kg4 {[%clk 00:06:00]}
Rg1+ {[%clk 00:00:25]} {[%emt 00:00:02]} 71. Kf5 {[%clk 00:06:04]} {[%emt
00:00:02]} Rf1+ {[%clk 00:00:28]} {[%emt 00:00:02]} 72. Ke6 {[%clk 00:06:06]}
{[%emt 00:00:03]} Kg7 {[%clk 00:00:26]} {[%emt 00:00:07]} 1/2-1/2

[Event "MČR juniorů a juniorek v rapid šachu 2023"]
[Site "Czech Republic"]
[Date "2023.09.23"]
[Round "3.11"]
[White "Pejrimovsky, Tadeas Rubel"]
[Black "Bezdek, Tomas"]
[Result "0-1"]
[TimeControl "20 min + 5 sec per move"]
[WhiteFideId "23709537"]
[BlackFideId "23733551"]
[WhiteElo "1679"]
[BlackElo "1933"]

1. e4 {[%clk 00:20:08]} {[%emt 00:00:01]} e6 {[%clk 00:20:10]} 2. Nf3 {[%clk
00:20:08]} {[%emt 00:00:05]} d5 {[%clk 00:20:13]} {[%emt 00:00:02]} 3. e5
{[%clk 00:20:12]} c5 {[%clk 00:20:17]} 4. b4 {[%clk 00:20:16]} {[%emt
00:00:02]} d4 {[%clk 00:20:21]} 5. bxc5 {[%clk 00:18:54]} {[%emt 00:01:27]}
Bxc5 {[%clk 00:20:24]} {[%emt 00:00:02]} 6. Bb5+ {[%clk 00:18:44]} {[%emt
00:00:14]} Bd7 {[%clk 00:20:00]} {[%emt 00:00:30]} 7. Bd3 {[%clk 00:18:00]}
{[%emt 00:00:50]} Nc6 {[%clk 00:19:47]} {[%emt 00:00:17]} 8. a3 {[%clk
00:18:00]} {[%emt 00:00:05]} Nge7 {[%clk 00:19:40]} {[%emt 00:00:12]} 9. O-O
{[%clk 00:17:25]} {[%emt 00:00:40]} Ng6 {[%clk 00:19:37]} {[%emt 00:00:08]} 10.
Re1 {[%clk 00:17:03]} {[%emt 00:00:27]} Qc7 {[%clk 00:18:11]} {[%emt 00:01:31]}
11. c3 {[%clk 00:14:01]} {[%emt 00:03:07]} Ngxe5 {[%clk 00:16:58]} {[%emt
00:01:18]} 12. Bf1 {[%clk 00:10:36]} {[%emt 00:03:30]} O-O {[%clk 00:15:22]}
{[%emt 00:01:42]} 13. Bb2 {[%clk 00:10:07]} {[%emt 00:00:33]} d3 {[%clk
00:13:41]} {[%emt 00:01:47]} 14. Nxe5 {[%clk 00:06:35]} {[%emt 00:03:37]} Nxe5
{[%clk 00:13:36]} {[%emt 00:00:09]} 15. Qh5 {[%clk 00:04:49]} {[%emt 00:01:51]}
f6 {[%clk 00:13:13]} {[%emt 00:00:29]} 16. c4 {[%clk 00:02:50]} {[%emt
00:02:04]} Bxf2+ {[%clk 00:12:48]} {[%emt 00:00:30]} 17. Kxf2 {[%clk 00:02:43]}
{[%emt 00:00:12]} Qb6+ {[%clk 00:12:49]} {[%emt 00:00:05]} 18. Kg3 {[%clk
00:02:39]} {[%emt 00:00:08]} Qxb2 {[%clk 00:12:42]} {[%emt 00:00:13]} 19. Nc3
{[%clk 00:01:38]} {[%emt 00:01:06]} Qxd2 {[%clk 00:11:38]} {[%emt 00:01:08]} 20.
Ne4 {[%clk 00:00:52]} {[%emt 00:00:51]} Qb2 {[%clk 00:08:20]} {[%emt 00:03:22]}
0-1

[Event "MČR juniorů a juniorek v rapid šachu 2023"]
[Site "Czech Republic"]
[Date "2023.09.23"]
[Round "3.12"]
[White "Hurtik, Matej"]
[Black "Pistej, Tomas"]
[Result "1-0"]
[TimeControl "20 min + 5 sec per move"]
[WhiteFideId "397997"]
[BlackFideId "23750740"]
[WhiteElo "1930"]
[BlackElo "1640"]

1. e4 {[%clk 00:20:07]} {[%emt 00:00:01]} e5 {[%clk 00:20:08]} {[%emt
00:00:03]} 2. Nf3 {[%clk 00:20:10]} {[%emt 00:00:02]} Nc6 {[%clk 00:20:11]}
{[%emt 00:00:03]} 3. Bc4 {[%clk 00:20:13]} {[%emt 00:00:02]} Nf6 {[%clk
00:20:13]} {[%emt 00:00:03]} 4. Ng5 {[%clk 00:19:44]} {[%emt 00:00:33]} d5
{[%clk 00:20:05]} {[%emt 00:00:13]} 5. exd5 {[%clk 00:19:47]} {[%emt 00:00:02]}
Na5 {[%clk 00:20:08]} {[%emt 00:00:02]} 6. Bb5+ {[%clk 00:19:51]} {[%emt
00:00:02]} c6 {[%clk 00:20:12]} {[%emt 00:00:02]} 7. dxc6 {[%clk 00:19:54]}
{[%emt 00:00:01]} bxc6 {[%clk 00:20:14]} {[%emt 00:00:03]} 8. Bd3 {[%clk
00:19:58]} {[%emt 00:00:01]} Nd5 {[%clk 00:19:18]} {[%emt 00:01:01]} 9. Ne4
{[%clk 00:19:30]} {[%emt 00:00:32]} f5 {[%clk 00:18:34]} {[%emt 00:00:50]} 10.
Ng3 {[%clk 00:19:11]} {[%emt 00:00:24]} e4 {[%clk 00:17:10]} {[%emt 00:01:29]}
11. Be2 {[%clk 00:19:14]} {[%emt 00:00:02]} Bd6 {[%clk 00:15:45]} {[%emt
00:01:30]} 12. d3 {[%clk 00:18:08]} {[%emt 00:01:11]} exd3 {[%clk 00:13:00]}
{[%emt 00:02:50]} 13. Bxd3 {[%clk 00:18:09]} {[%emt 00:00:04]} O-O {[%clk
00:12:39]} {[%emt 00:00:25]} 14. O-O {[%clk 00:17:35]} {[%emt 00:00:38]} c5
{[%clk 00:11:28]} {[%emt 00:01:18]} 15. Bc4 {[%clk 00:16:54]} {[%emt 00:00:46]}
Nxc4 {[%clk 00:07:47]} {[%emt 00:03:47]} 16. Qxd5+ {[%clk 00:16:55]} {[%emt
00:00:03]} Kh8 {[%clk 00:07:45]} {[%emt 00:00:07]} 17. Qxc4 {[%clk 00:15:52]}
{[%emt 00:01:08]} a5 {[%clk 00:06:35]} {[%emt 00:01:15]} 18. Rd1 {[%clk
00:15:29]} {[%emt 00:00:28]} Qc7 {[%clk 00:06:09]} {[%emt 00:00:31]} 19. Nc3
{[%clk 00:13:34]} {[%emt 00:02:00]} Ba6 {[%clk 00:04:30]} {[%emt 00:01:44]} 20.
Nb5 {[%clk 00:12:38]} {[%emt 00:01:00]} Bxb5 {[%clk 00:03:16]} {[%emt
00:01:19]} 21. Qxb5 {[%clk 00:12:41]} {[%emt 00:00:03]} c4 {[%clk 00:02:11]}
{[%emt 00:01:10]} 22. Be3 {[%clk 00:10:42]} {[%emt 00:02:04]} Rab8 {[%clk
00:01:40]} {[%emt 00:00:36]} 23. Qd5 {[%clk 00:10:45]} {[%emt 00:00:02]} Rbd8
{[%clk 00:00:57]} {[%emt 00:00:49]} 24. Bg5 {[%clk 00:10:48]} Be7 {[%clk
00:00:39]} {[%emt 00:00:23]} 25. Bxe7 {[%clk 00:08:23]} {[%emt 00:02:30]} Rxd5
{[%clk 00:00:29]} {[%emt 00:00:15]} 26. Bxf8 {[%clk 00:08:26]} {[%emt
00:00:02]} Rxd1+ {[%clk 00:00:12]} {[%emt 00:00:22]} 27. Rxd1 {[%clk 00:08:29]}
{[%emt 00:00:03]} Qc8 {[%clk 00:00:14]} {[%emt 00:00:02]} 28. Be7 {[%clk
00:08:27]} {[%emt 00:00:06]} 1-0

[Event "MČR juniorů a juniorek v rapid šachu 2023"]
[Site "Czech Republic"]
[Date "2023.09.23"]
[Round "3.13"]
[White "Slaby, Matej"]
[Black "Boff, Vojtech"]
[Result "1-0"]
[TimeControl "20 min + 5 sec per move"]
[WhiteFideId "23734876"]
[BlackFideId "23733969"]
[WhiteElo "1922"]
[BlackElo "1632"]

1. d4 {[%clk 00:20:08]} {[%emt 00:00:01]} Nf6 {[%clk 00:20:07]} {[%emt
00:00:03]} 2. Nf3 {[%clk 00:20:10]} {[%emt 00:00:04]} e6 {[%clk 00:20:05]}
{[%emt 00:00:07]} 3. e3 {[%clk 00:20:13]} {[%emt 00:00:02]} b6 {[%clk
00:19:46]} {[%emt 00:00:23]} 4. Nbd2 {[%clk 00:20:02]} {[%emt 00:00:16]} Bb7
{[%clk 00:19:48]} {[%emt 00:00:03]} 5. Bd3 {[%clk 00:20:05]} {[%emt 00:00:02]}
d5 {[%clk 00:19:51]} {[%emt 00:00:02]} 6. b3 {[%clk 00:19:50]} {[%emt
00:00:21]} Be7 {[%clk 00:19:41]} {[%emt 00:00:13]} 7. Bb2 {[%clk 00:19:54]}
{[%emt 00:00:02]} c5 {[%clk 00:19:42]} {[%emt 00:00:04]} 8. O-O {[%clk
00:19:55]} {[%emt 00:00:04]} Nc6 {[%clk 00:19:40]} {[%emt 00:00:07]} 9. a3
{[%clk 00:19:49]} {[%emt 00:00:13]} O-O {[%clk 00:19:06]} {[%emt 00:00:38]} 10.
Ne5 {[%clk 00:19:29]} {[%emt 00:00:24]} cxd4 {[%clk 00:18:58]} {[%emt
00:00:13]} 11. exd4 {[%clk 00:19:27]} {[%emt 00:00:07]} Rc8 {[%clk 00:18:27]}
{[%emt 00:00:35]} 12. f4 {[%clk 00:19:17]} {[%emt 00:00:16]} Qc7 {[%clk
00:17:13]} {[%emt 00:01:18]} 13. Qe2 {[%clk 00:19:11]} {[%emt 00:00:12]} Rfd8
{[%clk 00:16:19]} {[%emt 00:00:58]} 14. Rf3 {[%clk 00:18:41]} {[%emt 00:00:35]}
Bf8 {[%clk 00:15:48]} {[%emt 00:00:36]} 15. Rh3 {[%clk 00:18:33]} {[%emt
00:00:14]} g6 {[%clk 00:14:49]} {[%emt 00:01:03]} 16. Rf1 {[%clk 00:14:32]}
{[%emt 00:04:06]} Ne7 {[%clk 00:12:03]} {[%emt 00:02:51]} 17. Ndf3 {[%clk
00:12:21]} {[%emt 00:02:16]} h6 {[%clk 00:10:39]} {[%emt 00:01:30]} 18. g4
{[%clk 00:09:38]} {[%emt 00:02:48]} Ne4 {[%clk 00:09:07]} {[%emt 00:01:36]} 19.
Nh4 {[%clk 00:07:00]} {[%emt 00:02:43]} Bg7 {[%clk 00:08:19]} {[%emt 00:00:52]}
20. f5 {[%clk 00:05:26]} {[%emt 00:01:40]} exf5 {[%clk 00:07:48]} {[%emt
00:00:35]} 21. gxf5 {[%clk 00:05:21]} {[%emt 00:00:10]} g5 {[%clk 00:06:21]}
{[%emt 00:01:32]} 22. Ng2 {[%clk 00:03:03]} {[%emt 00:02:24]} Nf6 {[%clk
00:06:08]} {[%emt 00:00:18]} 23. Ne3 {[%clk 00:02:19]} {[%emt 00:00:49]} Nc6
{[%clk 00:04:37]} {[%emt 00:01:35]} 24. N3g4 {[%clk 00:02:01]} {[%emt
00:00:24]} Nxg4 {[%clk 00:04:29]} {[%emt 00:00:13]} 25. Nxg4 {[%clk 00:01:59]}
{[%emt 00:00:06]} Re8 {[%clk 00:04:30]} {[%emt 00:00:04]} 26. Qf2 {[%clk
00:01:53]} {[%emt 00:00:11]} Kh7 {[%clk 00:03:48]} {[%emt 00:00:47]} 27. f6+
{[%clk 00:01:57]} {[%emt 00:00:02]} Kg8 {[%clk 00:03:46]} {[%emt 00:00:07]} 28.
fxg7 {[%clk 00:01:59]} {[%emt 00:00:02]} Kxg7 {[%clk 00:03:50]} {[%emt
00:00:02]} 29. Qf6+ {[%clk 00:02:02]} {[%emt 00:00:02]} Kf8 {[%clk 00:03:49]}
{[%emt 00:00:06]} 30. Rxh6 {[%clk 00:01:52]} {[%emt 00:00:10]} 1-0